bitfinex/quotes_ETHUSD_20220202
["timestamp","ask_amount","ask_price","bid_price","bid_amount"]
[1643787286705,1.6,2759.9,2759.3,0.1811]
[1643787286706,1.31739912,2759.7,2759.3,0.1811]
[1643787286907,1.31736732,2759.7,2759.3,0.1811]
[1643787287107,1.61736732,2759.7,2759.3,0.1811]
[1643787287310,1.31736732,2759.7,2758.9,0.1811]
[1643787287709,1.61736732,2759.7,2758.9,0.1811]
[1643787288110,0.71125732,2759.7,2758.9,0.1811]
[1643787288616,0.71028266,2759.7,2758.9,0.1811]
[1643787289256,0.71028266,2759.7,2758.9,1.08715]
[1643787289460,0.29902534,2759.7,2758.9,1.08715]
[1643787289658,1.4811,2759.9,2758.9,1.08715]
[1643787289856,1.4811,2759.9,2758.9,0.90605]
[1643787290058,1.53218416,2759.8,2758.9,0.90605]
[1643787290258,1.53218416,2759.8,2758.8,0.9447292]
[1643787290259,2.83218416,2759.8,2758.8,0.9447292]
[1643787290460,1.53218416,2759.7,2758.8,0.9447292]
[1643787290664,0.03069534,2759.2,2758.8,0.9447292]
[1643787292268,0.03069534,2759.2,2758.8,1.8508392]
[1643787292467,0.03069534,2759.2,2758.9,0.40151437]
[1643787293316,0.03069534,2759.2,2758.9,1.30759437]
[1643787294520,0.03069534,2759.2,2758.9,0.90608]
[1643787295327,0.03069534,2759.2,2758.8,0.1811]
[1643787295328,1.53235551,2759.1,2758.8,0.1811]
[1643787295530,1.83235551,2759.1,2758.8,0.1811]
[1643787295725,1.53235551,2759.0,2758.8,0.1811]
[1643787296323,1.53235551,2759.0,2758.5,0.78537268]
[1643787297464,1.87699443,2758.9,2758.5,0.78537268]
[1643787297664,1.87699443,2758.9,2758.3,1.247]
[1643787297871,2.17699443,2758.9,2758.3,1.247]
[1643787298065,0.3,2758.9,2758.3,1.247]
[1643787298268,0.1812,2759.0,2758.3,1.247]
[1643787298566,1.53248451,2758.9,2758.3,1.247]
[1643787298763,1.83248451,2758.9,2758.3,1.247]
[1643787298964,0.3,2758.9,2758.3,2.36541497]
[1643787299171,2.50607269,2759.0,2758.3,2.36541497]
[1643787299567,0.1812,2759.0,2758.3,2.36541497]
[1643787299969,0.03069534,2759.2,2758.4,0.1812]
[1643787301104,0.03069534,2759.2,2758.6,0.90605]
[1643787301308,0.03069534,2759.2,2758.9,0.69999365]
[1643787303307,0.03069534,2759.2,2758.9,1.60602365]
[1643787304960,0.03069534,2759.2,2758.9,1.78722365]
[1643787305768,0.03069534,2759.2,2758.9,0.88119365]
[1643787305967,0.03069534,2759.2,2758.9,0.69999365]
[1643787309409,1.5324154,2759.1,2758.9,0.69999365]
[1643787309617,1.5324154,2759.1,2758.7,1.3536]
[1643787309812,1.5324154,2759.1,2758.7,1.1724]
[1643787310420,3.45851904,2759.1,2758.7,1.1724]
[1643787310615,1.5324154,2759.0,2758.7,1.1724]
[1643787311016,1.5324154,2758.9,2758.5,0.1812]
[1643787311217,2.9233894,2759.2,2758.5,0.1812]
[1643787311461,1.53254104,2759.1,2758.5,0.1812]
[1643787311664,2.30970957,2759.0,2758.2,1.3513]
[1643787311868,2.05654104,2758.9,2758.2,1.1701]
[1643787312060,3.7502268,2758.8,2758.2,1.1701]
[1643787312269,1.53254104,2758.7,2758.2,1.1701]
[1643787312460,1.88953271,2758.6,2758.2,1.1701]
[1643787312661,1.53254104,2758.5,2758.2,1.1701]
[1643787313060,1.85458901,2758.6,2758.1,3.3271]
[1643787313560,1.53274788,2758.5,2757.8,0.1812]
[1643787313759,1.90685714,2758.6,2757.8,0.1812]
[1643787313958,1.90685714,2758.6,2758.0,0.73651945]
[1643787314160,2.90685714,2758.6,2758.0,0.73651945]
[1643787314358,2.90685714,2758.6,2757.8,0.1812]
[1643787314561,2.90685714,2758.6,2757.6,5.23819994]
[1643787314562,2.90685714,2758.6,2757.7,0.1812]
[1643787314767,1.53274483,2758.5,2757.7,0.1812]
[1643787314961,1.89222873,2758.4,2757.7,0.1812]
[1643787315209,2.16947723,2758.7,2757.7,0.1812]
[1643787315411,1.53274404,2758.6,2757.7,0.1812]
[1643787315616,1.53274404,2758.6,2757.8,0.75668574]
[1643787315816,1.0,2758.6,2757.8,0.75668574]
[1643787316214,2.18526477,2758.7,2757.8,0.75668574]
[1643787316618,1.53271643,2758.6,2757.8,0.75668574]
[1643787316817,2.53271643,2758.6,2757.8,0.75668574]
[1643787317018,1.87147215,2758.5,2757.8,0.75668574]
[1643787317423,2.24169884,2758.7,2757.8,0.75668574]
[1643787317617,3.24169884,2758.7,2757.8,0.75668574]
[1643787317817,1.0,2758.6,2757.8,0.75668574]
[1643787318217,2.24169884,2758.7,2757.8,0.75668574]
[1643787318818,2.54169884,2758.7,2757.8,0.75668574]
[1643787319259,1.0,2758.6,2757.8,0.75668574]
[1643787320066,1.87571157,2758.5,2757.8,0.75668574]
[1643787320261,0.6,2758.7,2757.8,0.75668574]
[1643787320262,1.6,2758.7,2757.8,0.75668574]
[1643787320464,0.6,2758.7,2757.8,0.75668574]
[1643787320663,1.3,2758.7,2757.8,0.75668574]
[1643787321866,1.0,2758.7,2757.8,0.75668574]
[1643787322905,1.3,2758.7,2757.8,0.75668574]
[1643787323106,1.3,2758.7,2757.9,0.9064]
[1643787323705,1.0,2758.7,2757.9,0.9064]
[1643787323905,1.90522875,2758.6,2757.9,0.9064]
[1643787324207,1.90522875,2758.6,2757.9,0.8564]
[1643787324405,1.4812,2758.8,2757.9,0.8564]
[1643787324406,1.0,2758.7,2757.9,0.8564]
[1643787324609,1.5326959,2758.6,2757.9,0.8564]
[1643787324809,2.5326959,2758.6,2757.9,0.8564]
[1643787325009,0.03069534,2758.1,2757.9,0.8564]
[1643787326966,0.03069534,2758.1,2757.9,2.0617]
[1643787330214,0.03069534,2758.1,2757.9,1.2053]
[1643787331222,0.03069534,2758.1,2758.0,7.03149]
[1643787331223,9.534e-05,2758.1,2758.0,7.03149]
[1643787331423,1.53259844,2758.9,2758.1,6.85]
[1643787331624,0.1812,2759.2,2758.2,1.1688]
[1643787331625,1.53259844,2758.8,2758.2,1.1688]
[1643787331825,0.68662802,2759.5,2758.2,1.4188]
[1643787332029,0.68662802,2759.5,2758.8,0.31760715]
[1643787332030,0.1812,2759.4,2758.8,0.31760715]
[1643787332225,1.53255676,2759.3,2758.8,0.31760715]
[1643787332425,1.53255676,2759.3,2758.8,0.56760715]
[1643787332625,1.53255676,2759.2,2758.8,0.56760715]
[1643787332829,1.53255676,2759.1,2758.8,0.56760715]
[1643787333028,1.53255676,2759.0,2758.8,0.56760715]
[1643787333231,1.53255676,2758.9,2758.8,0.51760715]
[1643787333628,1.53255676,2759.4,2758.8,0.51760715]
[1643787333827,1.53255676,2759.4,2758.8,0.2]
[1643787334079,1.53255676,2759.3,2758.8,0.2]
[1643787334481,1.53255676,2759.2,2758.8,0.2]
[1643787334676,0.86782802,2759.6,2758.8,0.2]
[1643787334677,1.53255676,2759.1,2758.8,0.2]
[1643787334882,1.53255676,2759.0,2758.8,0.2]
[1643787335081,1.53255676,2758.9,2758.8,0.2]
[1643787335279,1.53255676,2758.9,2758.8,0.92281011]
[1643787335688,1.53255676,2759.5,2758.8,0.92281011]
[1643787337286,1.53255676,2759.5,2758.8,1.82890011]
[1643787338114,1.53255676,2759.5,2758.8,2.73499011]
[1643787338916,1.53255676,2759.5,2758.8,3.64107011]
[1643787340117,1.53255676,2759.5,2759.0,0.90606]
[1643787340516,1.53255676,2759.4,2759.0,1.81211]
[1643787340719,1.53255676,2759.3,2759.0,1.81211]
[1643787340916,1.53255676,2759.2,2759.0,1.81211]
[1643787341121,1.53255676,2759.1,2759.0,1.81211]
[1643787341563,1.53255676,2759.6,2759.0,1.81211]
[1643787341867,1.53255676,2759.5,2759.0,1.81211]
[1643787342064,1.53255676,2759.4,2759.0,1.81211]
[1643787342263,1.53255676,2759.3,2759.0,1.81211]
[1643787342466,1.53255676,2759.2,2759.0,1.81211]
[1643787342668,0.86782802,2759.7,2759.0,1.61211]
[1643787342669,1.53255676,2759.1,2759.0,1.61211]
[1643787343064,1.53255676,2759.6,2759.0,1.61211]
[1643787343267,1.53255676,2759.5,2759.0,1.61211]
[1643787343464,0.86782802,2759.7,2759.0,1.61211]
[1643787343465,1.53255676,2759.4,2759.0,1.61211]
[1643787343671,1.53255676,2759.3,2758.8,2.01218]
[1643787343870,1.53255676,2759.2,2758.8,2.01218]
[1643787344071,1.53255676,2759.1,2758.8,2.91828]
[1643787344269,1.53255676,2759.6,2758.8,2.91828]
[1643787344767,1.53255676,2759.6,2758.8,3.83913525]
[1643787346008,1.53255676,2759.6,2758.8,1.1061]
[1643787346210,2.81918478,2759.6,2758.8,1.1061]
[1643787346406,1.53255676,2759.5,2758.8,1.1061]
[1643787346613,2.53255676,2759.5,2758.8,1.1061]
[1643787346816,2.53255676,2759.4,2758.8,1.1061]
[1643787347014,1.53255676,2759.3,2758.8,1.7973245]
[1643787347214,1.53255676,2759.3,2758.8,0.8912245]
[1643787347417,2.53255676,2759.5,2758.8,0.2]
[1643787347618,1.53255676,2759.2,2758.8,0.2]
[1643787347817,1.53255676,2759.1,2758.8,0.2]
[1643787348018,1.53255676,2759.0,2758.8,0.2]
[1643787348217,1.53255676,2758.9,2758.8,0.2]
[1643787348616,1.53255676,2759.4,2758.8,0.2]
[1643787349262,1.53255676,2759.4,2758.8,1.02466102]
[1643787350465,1.53255676,2759.4,2758.8,0.2]
[1643787350670,1.53255676,2759.4,2759.3,1.81213]
[1643787350869,1.53255676,2759.4,2759.3,0.17751574]
[1643787351267,0.86782802,2759.6,2759.3,0.17751574]
[1643787351268,2.21918478,2759.5,2759.3,0.17751574]
[1643787351771,3.21918478,2759.5,2759.3,0.17751574]
[1643787352070,1.53255676,2759.4,2759.3,0.17751574]
[1643787352903,2.21918478,2759.5,2759.3,0.17751574]
[1643787353202,3.21918478,2759.5,2759.3,0.17751574]
[1643787353402,1.53255676,2759.4,2759.2,0.90612]
[1643787353804,2.53255676,2759.4,2759.2,0.90612]
[1643787354004,1.53255676,2759.3,2759.2,0.90612]
[1643787354209,2.21918478,2759.5,2759.2,0.90612]
[1643787354405,1.53255676,2759.4,2759.2,0.85612]
[1643787354604,0.68662802,2759.5,2759.2,0.85612]
[1643787354605,1.53255676,2759.3,2759.2,0.85612]
[1643787354804,3.21918478,2759.5,2759.2,0.85612]
[1643787355005,1.53255676,2759.4,2759.2,0.85612]
[1643787355205,1.53255676,2759.3,2759.2,0.85612]
[1643787356205,0.68662802,2759.5,2759.2,0.85612]
[1643787356206,2.21918478,2759.5,2759.2,0.85612]
[1643787356473,1.53255676,2759.4,2759.2,0.85612]
[1643787356679,1.53255676,2759.3,2759.2,0.85612]
[1643787357081,0.68662802,2759.5,2759.2,0.85612]
[1643787357279,3.21918478,2759.5,2759.2,0.85612]
[1643787357481,1.53255676,2759.4,2759.2,0.85612]
[1643787357886,1.53255676,2759.3,2759.2,0.85612]
[1643787358283,0.68662802,2759.5,2759.2,0.85612]
[1643787358284,2.21918478,2759.5,2759.2,0.85612]
[1643787358681,1.53255676,2759.4,2759.2,0.85612]
[1643787358882,1.53255676,2759.3,2759.2,0.85612]
[1643787359283,0.68662802,2759.5,2759.2,0.85612]
[1643787359489,2.21918478,2759.5,2759.2,0.85612]
[1643787359883,1.53255676,2759.4,2759.2,0.85612]
[1643787360083,1.53255676,2759.3,2759.2,0.85612]
[1643787360314,0.68662802,2759.5,2759.2,0.85612]
[1643787360517,2.21918478,2759.6,2759.2,0.85612]
[1643787360715,1.53255676,2759.5,2759.2,0.85612]
[1643787360922,1.53255676,2759.4,2759.2,0.85612]
[1643787361118,1.53255676,2759.3,2759.2,0.85612]
[1643787361316,0.68662802,2759.5,2759.2,0.85612]
[1643787361920,0.68662802,2759.4,2759.2,0.85612]
[1643787362125,2.21918478,2759.3,2759.1,1.81227]
[1643787362321,1.53255676,2759.2,2759.1,1.81227]
[1643787362719,0.68662802,2759.2,2759.1,1.81227]
[1643787363958,2.44797881,2759.3,2759.1,1.81227]
[1643787364363,1.53255676,2759.2,2759.0,0.2]
[1643787364559,1.53255676,2759.1,2759.0,0.2]
[1643787364764,2.44797881,2759.1,2759.0,0.2]
[1643787364959,2.44797881,2759.2,2759.0,0.2]
[1643787365158,2.44797881,2759.1,2759.0,0.2]
[1643787365558,1.53255676,2759.1,2759.0,0.2]
[1643787365960,0.91542205,2759.3,2759.0,0.2]
[1643787365961,2.44797881,2759.3,2759.0,0.2]
[1643787366160,0.91542205,2759.2,2759.0,0.2]
[1643787366763,2.44797881,2759.1,2759.0,0.2]
[1643787366963,2.44797881,2759.1,2758.7,0.90629]
[1643787367168,0.33187121,2758.7,2758.4,0.25]
[1643787367373,2.55183604,2758.7,2758.4,0.25]
[1643787367573,0.68740807,2758.5,2758.4,0.25]
[1643787367820,3.44797881,2758.6,2758.4,0.25]
[1643787368022,1.53255676,2758.5,2757.7,0.1812]
[1643787368224,1.53255676,2758.5,2757.9,0.25]
[1643787368225,0.68704417,2758.4,2757.9,0.25]
[1643787368424,2.74360093,2758.4,2757.9,0.25]
[1643787368623,1.53255676,2758.3,2757.9,0.25]
[1643787368822,3.43918676,2758.3,2757.9,0.25]
[1643787369023,1.53255676,2758.2,2757.9,0.25]
[1643787372871,1.53255676,2758.2,2757.7,1.0878]
[1643787373868,1.83255676,2758.2,2757.6,0.90665]
[1643787374068,2.43924676,2758.1,2757.6,0.90665]
[1643787374268,1.53255676,2758.0,2757.6,0.90665]
[1643787376520,1.53255676,2758.0,2757.4,0.1812]
[1643787376715,1.53255676,2758.0,2757.4,1.08788]
[1643787379863,1.53255676,2758.0,2757.4,1.03788]
[1643787380060,1.53255676,2758.0,2757.4,0.85668]
[1643787380467,1.53255676,2758.0,2757.3,5.72881]
[1643787380761,1.53255676,2758.0,2757.3,1.81331]
[1643787383815,1.83255676,2758.0,2757.3,1.81331]
[1643787384020,1.53255676,2757.9,2757.3,1.76331]
[1643787384620,2.53255676,2757.9,2757.3,1.76331]
[1643787384822,1.53255676,2757.8,2757.3,1.76331]
[1643787385022,1.3,2758.0,2757.3,1.76331]
[1643787385023,0.3,2758.0,2757.3,1.76331]
[1643787385220,1.53310946,2757.9,2757.3,1.76331]
[1643787387061,1.53310946,2757.8,2757.3,1.76331]
[1643787387260,1.0,2758.0,2757.3,1.76331]
[1643787387463,1.5330821,2757.9,2757.3,1.76331]
[1643787387664,1.20669,2758.1,2757.3,1.76331]
[1643787387665,1.5330821,2757.8,2757.3,1.76331]
[1643787387969,0.90679,2757.9,2757.1,1.405]
[1643787388166,1.53308832,2757.8,2757.1,1.405]
[1643787388767,1.53308832,2757.8,2757.1,1.705]
[1643787388966,1.86859813,2757.7,2757.1,1.5238]
[1643787389168,1.86859813,2757.7,2756.7,0.1813]
[1643787389169,0.01214891,2757.4,2756.7,0.1813]
[1643787389368,0.01214891,2757.4,2756.5,1.8137]
[1643787389369,0.01214891,2757.4,2756.2,1.1255]
[1643787389370,2.23840213,2757.3,2756.2,1.1255]
[1643787389567,3.53320213,2757.2,2756.2,1.1255]
[1643787389766,3.23840213,2757.1,2756.2,1.1255]
[1643787389968,1.524,2757.1,2756.2,1.1255]
[1643787390207,0.524,2757.1,2756.2,1.1255]
[1643787390608,0.524,2757.1,2756.4,0.80672691]
[1643787391611,0.524,2757.1,2756.4,1.71364691]
[1643787391814,7.9177,2757.6,2756.4,1.40672691]
[1643787391815,0.1812,2757.4,2756.4,1.40672691]
[1643787392014,3.7133,2757.6,2756.5,0.62555031]
[1643787392212,0.524,2757.8,2756.5,1.78065031]
[1643787392213,1.53328361,2757.5,2756.5,1.78065031]
[1643787392418,2.0,2757.7,2756.5,1.78065031]
[1643787392615,1.53331536,2757.6,2756.5,1.78065031]
[1643787392811,1.53331536,2757.6,2756.5,1.3363]
[1643787393210,2.53331536,2757.6,2756.5,1.3363]
[1643787393411,1.53331536,2757.5,2756.5,1.3363]
[1643787393960,4.53331536,2757.5,2756.6,0.9068]
[1643787394167,1.53331536,2757.5,2756.7,0.3]
[1643787394364,1.0,2757.4,2756.7,0.3]
[1643787394562,1.88614979,2757.4,2756.7,0.3]
[1643787394762,0.1812,2757.5,2756.6,0.9068]
[1643787394963,1.53335421,2757.4,2756.6,0.9068]
[1643787395167,0.1812,2757.6,2756.6,0.9068]
[1643787395369,0.1812,2757.6,2756.7,0.3]
[1643787395370,1.53333594,2757.5,2756.7,0.3]
[1643787395864,2.53333594,2757.5,2756.6,0.9068]
[1643787396063,1.0,2757.5,2756.6,0.9068]
[1643787396269,2.09269425,2757.6,2756.6,0.9068]
[1643787396464,1.53332461,2757.5,2756.6,0.9068]
[1643787396863,2.53332461,2757.5,2756.6,0.9068]
[1643787397063,1.0,2757.5,2756.7,0.3]
[1643787397263,3.0571733,2757.7,2756.9,0.9068]
[1643787397465,1.53327028,2757.6,2756.9,0.9068]
[1643787397705,1.53327028,2757.6,2756.8,1.1695]
[1643787398510,1.87711704,2757.5,2756.8,1.1695]
[1643787398712,1.533343,2757.4,2756.8,1.1695]
[1643787398920,1.97641325,2757.3,2756.8,1.1695]
[1643787399114,1.533343,2757.2,2756.8,1.1695]
[1643787399312,1.0,2757.5,2756.6,3.5514]
[1643787399512,3.60248905,2757.4,2756.6,4.729]
[1643787399712,2.53341934,2757.3,2756.6,4.729]
[1643787399912,1.53341934,2757.2,2756.6,4.729]
[1643787400313,1.0,2757.4,2756.6,4.679]
[1643787400512,1.53340625,2757.3,2756.6,4.679]
[1643787400911,3.40727331,2757.3,2756.6,4.679]
[1643787401114,1.53340625,2757.2,2756.6,4.679]
[1643787401564,1.0,2757.4,2756.6,4.679]
[1643787401765,1.53337245,2757.3,2756.6,5.58589]
[1643787402363,1.53337245,2757.3,2756.6,5.33589]
[1643787403364,3.39680611,2757.3,2756.6,5.33589]
[1643787403661,2.53337245,2757.2,2756.6,5.33589]
[1643787403862,2.53337245,2757.1,2756.6,5.33589]
[1643787404070,1.53337245,2757.0,2756.6,2.08449]
[1643787404265,0.1812,2757.3,2756.6,2.08449]
[1643787404464,1.53340562,2757.2,2756.6,2.08449]
[1643787404664,1.53340562,2757.1,2756.6,2.08449]
[1643787404863,1.53340562,2757.0,2756.6,2.08449]
[1643787405063,1.53340562,2756.9,2756.6,2.08449]
[1643787405309,0.1812,2757.4,2756.6,0.90689]
[1643787405511,1.53341784,2757.3,2756.6,0.90689]
[1643787406113,1.53341784,2757.3,2756.5,1.1703]
[1643787406719,1.53341784,2757.3,2756.5,1.4703]
[1643787407516,1.53341784,2757.3,2756.5,2.3772]
[1643787408717,1.53341784,2757.3,2756.5,3.5840932]
[1643787409159,1.53341784,2757.3,2756.5,3.5340932]
[1643787409560,1.53341784,2757.3,2756.7,0.25]
[1643787412814,1.88412098,2757.2,2756.7,0.25]
[1643787413015,1.53341784,2757.1,2756.7,0.25]
[1643787413514,3.45792037,2757.1,2756.7,0.25]
[1643787413714,2.53341784,2757.0,2756.7,0.25]
[1643787413918,1.53341784,2756.9,2756.7,0.25]
[1643787414527,1.53341784,2756.8,2756.7,0.25]
[1643787415824,1.53341784,2757.0,2756.7,0.25]
[1643787416021,1.53341784,2756.9,2756.7,0.25]
[1643787416322,1.53341784,2756.8,2756.7,0.25]
[1643787416564,1.0,2757.2,2756.7,0.25]
[1643787416565,1.53341784,2757.1,2756.7,0.25]
[1643787416766,1.53341784,2757.0,2756.7,0.25]
[1643787417272,2.53341784,2757.0,2756.7,0.25]
[1643787417467,1.53341784,2756.9,2756.7,0.25]
[1643787417670,1.53341784,2756.8,2756.7,0.25]
[1643787418074,1.53341784,2757.1,2756.7,0.25]
[1643787418371,1.53341784,2757.0,2756.7,0.25]
[1643787418770,2.0,2756.9,2756.3,3.256]
[1643787418971,1.53341784,2756.8,2756.3,3.0748]
[1643787419368,2.53341784,2756.8,2756.0,2.3571]
[1643787419569,2.05741784,2756.7,2756.1,0.3]
[1643787419772,1.53341784,2756.6,2756.1,1.1123138]
[1643787420219,2.05741784,2756.6,2756.1,1.1123138]
[1643787420417,1.53341784,2756.5,2756.1,0.3]
[1643787421115,3.41216035,2756.5,2756.1,0.3]
[1643787421315,2.53341784,2756.4,2756.1,0.3]
[1643787421518,1.53341784,2756.3,2756.1,0.3]
[1643787422324,1.53341784,2756.3,2755.9,1.3030662]
[1643787423719,1.53341784,2756.3,2755.9,1.0030662]
[1643787424766,1.0,2756.4,2755.9,1.3030662]
[1643787425169,1.53369867,2756.3,2755.9,1.3030662]
[1643787425467,1.53369867,2756.2,2755.9,1.3030662]
[1643787425667,1.94392704,2756.5,2755.9,1.3030662]
[1643787425867,1.53370306,2756.4,2755.9,1.3030662]
[1643787426370,2.53370306,2756.4,2755.9,1.3030662]
[1643787426574,1.53370306,2756.3,2755.9,1.3030662]
[1643787426773,1.53371347,2756.2,2755.9,1.3030662]
[1643787426974,1.0,2756.4,2755.9,1.3030662]
[1643787427176,1.53370858,2756.3,2755.9,1.3030662]
[1643787427375,0.524,2756.6,2755.9,1.3030662]
[1643787427584,1.53370831,2756.5,2755.9,1.3030662]
[1643787427815,1.53370831,2756.5,2755.9,1.0030662]
[1643787428015,3.38993306,2756.5,2755.9,1.0030662]
[1643787428220,2.53370831,2756.4,2755.9,1.0030662]
[1643787428423,1.53370831,2756.3,2755.9,1.0030662]
[1643787428620,1.53370831,2756.3,2755.9,0.3]
[1643787428820,1.53370831,2756.3,2755.7,5.0268]
[1643787429219,3.39410146,2756.3,2755.7,5.0268]
[1643787429422,1.53370831,2756.2,2755.7,5.0268]
[1643787429722,2.53370831,2756.2,2755.9,0.93549043]
[1643787429922,2.0988562,2756.5,2755.9,0.93549043]
[1643787429923,3.0988562,2756.5,2755.9,0.93549043]
[1643787430126,1.53374785,2756.4,2755.9,0.93549043]
[1643787430520,1.53374785,2756.4,2755.9,1.53549043]
[1643787430821,1.53374785,2756.3,2755.9,0.93549043]
[1643787431020,1.53374785,2756.2,2755.9,0.93549043]
[1643787431221,1.0,2756.4,2755.7,4.4268]
[1643787431461,1.0,2756.4,2755.7,5.0268]
[1643787431665,1.53373897,2756.3,2755.7,5.0268]
[1643787431970,1.53373897,2756.2,2755.7,4.8454]
[1643787432166,1.0,2756.4,2755.7,4.8454]
[1643787432366,1.53374514,2756.3,2755.7,4.8454]
[1643787432565,1.53374514,2756.2,2755.8,0.72347901]
[1643787432776,1.53374514,2756.1,2755.8,0.72347901]
[1643787432969,3.39290592,2756.7,2755.8,0.72347901]
[1643787433171,1.53377791,2756.6,2755.8,0.72347901]
[1643787433566,1.89120545,2756.5,2755.8,0.72347901]
[1643787433766,1.53377791,2756.4,2755.8,0.72347901]
[1643787434167,2.53377791,2756.4,2755.8,0.72347901]
[1643787434367,1.53377791,2756.3,2755.8,0.72347901]
[1643787434767,2.53377791,2756.3,2755.8,0.72347901]
[1643787434967,1.53377791,2756.2,2755.8,0.72347901]
[1643787435214,1.53377791,2756.1,2755.8,0.72347901]
[1643787435418,1.53384517,2756.0,2755.7,4.5454]
[1643787435615,1.89470699,2755.9,2755.7,0.3]
[1643787435815,1.0,2756.4,2755.6,2.17237174]
[1643787435816,2.25337103,2756.4,2755.6,2.17237174]
[1643787436113,1.53385755,2756.3,2755.6,2.17237174]
[1643787436324,1.93339805,2756.2,2755.6,2.17237174]
[1643787436518,1.53385755,2756.1,2755.6,2.94935669]
[1643787436919,1.53385755,2756.0,2755.6,2.94935669]
[1643787437224,1.0,2756.3,2755.6,2.94935669]
[1643787437418,2.05105348,2756.4,2755.6,2.94935669]
[1643787437618,1.53385654,2756.3,2755.6,2.94935669]
[1643787437819,2.53385654,2756.3,2755.6,2.94935669]
[1643787438024,1.88795731,2756.2,2755.6,2.67295675]
[1643787438221,1.53385654,2756.1,2755.6,2.49155675]
[1643787438821,1.53385654,2756.0,2755.6,2.49155675]
[1643787439070,2.13017133,2756.3,2755.6,1.7145718]
[1643787439270,1.53387278,2756.2,2755.6,1.7145718]
[1643787439770,1.9062739,2756.1,2755.6,1.7145718]
[1643787439970,1.53387278,2756.0,2755.6,2.48955143]
[1643787440369,1.0,2756.4,2755.6,2.48955143]
[1643787440574,1.53387746,2756.3,2755.6,2.48955143]
[1643787440969,3.42845577,2756.3,2755.6,2.48955143]
[1643787441170,1.53387746,2756.2,2755.6,2.48955143]
[1643787441371,1.53387746,2756.2,2755.6,1.7145718]
[1643787441574,1.88534189,2756.1,2755.6,1.7145718]
[1643787441779,1.53387746,2756.0,2755.6,1.7145718]
[1643787442173,1.0,2756.2,2755.6,1.7145718]
[1643787442373,1.53389998,2756.1,2755.7,0.80426709]
[1643787442574,3.48742302,2756.5,2755.7,0.80426709]
[1643787442575,1.53389998,2756.0,2755.7,0.80426709]
[1643787442814,1.0,2756.4,2755.7,0.80426709]
[1643787443013,3.43173877,2756.3,2755.6,1.7145718]
[1643787443222,2.53388519,2756.2,2755.6,1.7145718]
[1643787443413,1.53388519,2756.1,2755.6,1.7145718]
[1643787444215,1.53388519,2756.1,2755.6,2.46426928]
[1643787446218,3.41274637,2756.1,2755.6,1.4145718]
[1643787446472,3.96532519,2756.0,2755.6,1.1145718]
[1643787446673,0.52184663,2755.5,2755.3,4.4466]
[1643787446876,3.60309711,2755.4,2755.0,0.1814]
[1643787447075,2.06921192,2755.4,2755.1,0.95074072]
[1643787447273,2.25118585,2755.7,2755.0,0.1814]
[1643787447473,1.53415521,2755.6,2755.0,0.1814]
[1643787447975,2.53415521,2755.6,2755.0,0.1814]
[1643787448175,1.0,2755.6,2755.0,0.1814]
[1643787448382,3.01681836,2755.7,2755.1,0.84197043]
[1643787448575,1.53410119,2755.6,2755.1,0.84197043]
[1643787448774,2.53410119,2755.6,2755.2,0.3]
[1643787448974,1.0,2755.6,2755.2,0.3]
[1643787449173,1.0,2755.6,2755.0,0.7814]
[1643787449373,2.8809166,2755.7,2755.0,0.7814]
[1643787449573,1.53409408,2755.6,2755.0,0.7814]
[1643787449775,1.91248097,2755.5,2755.0,0.7814]
[1643787450213,1.43148,2755.8,2755.0,0.6]
[1643787450214,3.0622718,2755.7,2755.0,0.6]
[1643787450416,1.53409222,2755.6,2755.0,0.6]
[1643787450616,1.53409222,2755.6,2755.0,0.55]
[1643787450617,3.47851066,2755.5,2755.0,0.55]
[1643787450816,1.53415269,2755.4,2755.0,0.55]
[1643787451022,1.53415269,2755.4,2754.9,0.9074507]
[1643787451214,1.53415269,2755.4,2755.0,0.3]
[1643787451417,1.0,2755.6,2755.0,0.3]
[1643787451618,3.40929039,2755.5,2755.0,1.08314866]
[1643787451820,1.87509491,2755.5,2755.0,1.08314866]
[1643787452219,1.87509491,2755.5,2755.0,1.38314866]
[1643787452419,3.03690186,2755.7,2755.0,1.38314866]
[1643787452820,1.53418268,2755.6,2755.0,1.08314866]
[1643787453321,1.87118068,2755.5,2755.0,1.08314866]
[1643787453524,1.87118068,2755.5,2755.0,0.3]
[1643787454062,2.96389324,2755.7,2755.0,0.3]
[1643787454260,1.53415152,2755.6,2755.0,0.3]
[1643787454662,1.87353497,2755.5,2755.0,0.3]
[1643787454863,2.87353497,2755.5,2755.0,0.6]
[1643787455262,2.99603174,2755.7,2755.0,0.6]
[1643787455462,1.53414813,2755.6,2755.0,0.6]
[1643787455661,1.9479126,2755.5,2755.0,0.6]
[1643787455863,2.9479126,2755.5,2755.0,0.3]
[1643787456261,3.11525704,2755.7,2755.0,0.3]
[1643787456462,1.53417965,2755.6,2755.0,0.3]
[1643787456667,1.8895905,2755.5,2755.0,0.3]
[1643787456865,1.98607796,2755.7,2755.0,0.3]
[1643787457068,1.0,2755.5,2755.0,0.3]
[1643787457266,1.53417166,2755.6,2755.0,0.3]
[1643787457267,1.86972232,2755.4,2755.0,0.3]
[1643787457468,2.96572104,2755.6,2755.0,0.3]
[1643787457917,1.96572104,2755.6,2755.0,0.3]
[1643787458115,1.0,2755.5,2755.0,0.3]
[1643787458314,1.96572104,2755.6,2755.0,0.3]
[1643787458915,1.89091958,2755.6,2755.0,0.3]
[1643787459116,2.87786259,2755.7,2755.0,0.3]
[1643787459317,1.0,2755.6,2755.0,0.3]
[1643787459717,1.5342905,2755.5,2755.0,0.3]
[1643787459922,1.5342905,2755.4,2755.0,0.3]
[1643787460117,1.87976594,2755.7,2755.0,0.3]
[1643787460316,1.53425018,2755.6,2755.0,0.3]
[1643787460716,2.53425018,2755.6,2755.0,0.3]
[1643787460919,1.53425018,2755.5,2755.1,0.9074347]
[1643787461118,1.0,2755.5,2755.1,0.9074347]
[1643787461323,1.53425018,2755.4,2755.1,0.9074347]
[1643787461570,1.53425018,2755.3,2755.1,0.9074347]
[1643787461771,1.0,2755.5,2755.1,0.9074347]
[1643787461971,1.53428784,2755.4,2755.1,0.9074347]